Cogmind - Beta 14 @@@ ROGUE MODE // 2024.09.04 @ 11:54:33 Player: Minty Result: Destroyed by EP-2U3(R) with Subdweller Beam Cannon Performance ------------- Evolutions (0) 0 Regions Visited (2) 400 Robots Destroyed (6) 30 Value Destroyed (225) 225 Prototype IDs (2) 40 Alien Tech Used (0) 0 Bonus (-25) -25 TOTAL SCORE: 670 Bonus ------- Friendly Fire -25 Cogmind --------- Core Integrity 0/250 Matter 255/300 Energy 117/125 System Corruption 1% Temperature Cool (9) Movement Rolling (115) Ox1 Location -10/Subcaves Parts ------- > --- POWER (1) -------- Light Ion Engine > --- PROPULSION (2) --- Compact Wheel > --- UTILITY (2) ------ Large Storage Unit Structural Scanner > --- WEAPON (2) ------- Small Laser > --- INVENTORY (15) --- Ion Engine Light Ion Engine Light Nuclear Core Light Treads Light Treads Aluminum Leg Weapon Shielding Hacking Suite Peak State ------------ > --- POWER ------------ Light Nuclear Core > --- PROPULSION ------- Aluminum Leg Aluminum Leg > --- UTILITY ---------- Large Storage Unit Structural Scanner > --- WEAPON ----------- Particle Gun Assault Rifle > --- INVENTORY -------- Ion Engine Light Ion Engine Light Treads Light Treads Wheel Compact Wheel Weapon Shielding Hacking Suite Small Laser Grenade Launcher [Rating: 11] Favorites ----------- Power Light Nuclear Core Engine Ion Engine Power Core Light Nuclear Core Propulsion Aluminum Leg Leg Aluminum Leg Wheel Compact Wheel Utility Structural Scanner Device Structural Scanner Storage Large Storage Unit Weapon Assault Rifle Energy Gun Particle Gun Ballistic Gun Assault Rifle Launcher Grenade Launcher Build | -11 -10 -10 ------- Run | Yrd Mat Sub Slots Evolved . | . . . Power . | . . . Propulsion . | . . . Utility . | . . . Weapon . | . . . Parts Attached 12 | . 11 1 Power 2 | . 2 . Engine 1 | . 1 . Core 1 | . 1 . Reactor . | . . . Propulsion 2 | . 2 . Treads . | . . . Leg . | . . . Wheel 2 | . 2 . Hover . | . . . Flight . | . . . Utility 3 | . 3 . Device 1 | . 1 . Storage 2 | . 2 . Processor . | . . . Hackware . | . . . Protection . | . . . Artifact . | . . . Weapon 5 | . 4 1 Energy Gun 2 | . 1 1 Energy Cannon . | . . . Ballistic Gun 2 | . 2 . Ballistic Cannon . | . . . Launcher 1 | . 1 . Special Weapon . | . . . Impact Weapon . | . . . Slashing Weapon . | . . . Piercing Weapon . | . . . Special Melee Weapon . | . . . Unidentified Prototypes . | . . . Parts Lost 5 | . 3 2 Power . | . . . Propulsion 2 | . 1 1 Utility . | . . . Weapon 3 | . 2 1 Highest Loss Streak 3 | . 3 2 To Critical Strikes 1 | . . 1 Average Slot Usage (%) 97 | . 98 81 Engine 3 | . 3 14 Core 9 | . 10 . Leg 25 | . 27 . Wheel 1 | . . 24 Device 13 | . 13 14 Storage 13 | . 13 14 Energy Gun 10 | . 10 3 Ballistic Gun 16 | . 16 10 Peak Build Rating 11 | 6 11 8 Average Rating 9 | 6 9 6 On Entrance 6 | 6 6 7 Naked Turns . | . . . Heaviest Build 31 | 12 31 26 Greatest Support 26 | 20 26 26 Greatest Overweight (x) 1 | . 1 . Average Overweight (x) . | . . . Largest Inventory Capacity 15 | 8 15 15 Average Capacity 11 | 8 11 15 Most Carried 10 | 6 10 9 Average Carried 7 | 6 7 8 Final Capacity 15 | 8 15 15 Final Carried 9 | 6 9 8 Class Distribution -------------------- 100% | Mutant Dominant Class ---------------- Mutant | -10/Materials Mutant | -10/Subcaves Resources | -11 -10 -10 ----------- Run | Yrd Mat Sub Matter Collected 379 | 150 217 12 Remotely . | . . . Salvage Created 218 | . 218 . Parts 14 | . 14 . Haulers Intercepted . | . . . Recyclers Shooed 2 | . 2 . Parts Field Recycled . | . . . Retrieved Matter . | . . . Parts Self-Destructed . | . . . Prevented . | . . . Kills | -11 -10 -10 ------- Run | Yrd Mat Sub Combat Hostiles Destroyed 5 | . 5 . Guns 4 | . 4 . AOE 1 | . 1 . Classes Destroyed 3 | . 3 . Watcher 1 | . 1 . Grunt 4 | . 4 . Subdweller 1 | . 1 . Best Kill Streak 3 | . 3 . Combat Bots Only 2 | . 2 . Max Kills in Single Turn 1 | . 1 . Gunslinging . | . . . Exploded 1 | . 1 . Melee . | . . . Uniques/NPCs Destroyed . | . . . Combat | -11 -10 -10 -------- Run | Yrd Mat Sub Hostile Shots Fired 63 | . 46 17 Missed 22 | . 13 9 Damage Taken 893 | . 701 192 Core 266 | . 157 109 Absorbed by Shields . | . . . Regen/Repaired (Parts) 259 | . 259 . Core Remaining (%) 100 | 100 . . Volleys Fired 42 | . 33 9 Largest 2 | . 2 2 Hottest 95 | . 95 60 Shots Fired 75 | . 65 10 Gun 74 | . 64 10 Cannon . | . . . Launcher 1 | . 1 . Special . | . . . Kinetic 47 | . 42 5 Thermal 27 | . 22 5 Explosive 1 | . 1 . Electromagnetic . | . . . Robot Hit Streak 6 | . 6 6 Robot Miss Streak 8 | . 8 1 Penetration Max . | . . . Secondary Targets 2 | . 2 . Max Gunslinging Chain 1 | . 1 . Shots Hit Robots 41 | . 33 8 Core Hits 17 | . 16 1 Critical Kills 1 | . 1 . Critical Parts Destroyed . | . . . Critical Strikes 3 | . 3 . Burn 2 | . 2 . Destroy 1 | . 1 . Melee Attacks . | . . . Impact . | . . . Slashing . | . . . Piercing . | . . . Sneak Attacks . | . . . Combat Hostiles . | . . . Follow-up Attacks . | . . . Damage Inflicted 636 | . 524 112 Guns 561 | . 449 112 Cannons . | . . . Explosions 63 | . 63 . Melee . | . . . Ramming 12 | . 12 . Kinetic 371 | . 303 68 Thermal 190 | . 146 44 Explosive 63 | . 63 . Electromagnetic . | . . . Impact . | . . . Slashing . | . . . Piercing . | . . . Highest Corruption 1 | . 1 1 Average Corruption 1 | . 1 1 Corruption Purged . | . . . Corruption Blocked . | . . . Effects 3 | . 3 . Message Errors 1 | . 1 . Heat Flow Errors 1 | . 1 . Energy Discharges 1 | . 1 . Overload Shots . | . . . Overflow Damage . | . . . Projectiles . | . . . Explosions . | . . . Melee . | . . . Knockbacks . | . . . Impact . | . . . Kinetic . | . . . Secondary . | . . . Self-Inflicted Damage . | . . . Shots . | . . . Rammed . | . . . Targets Rammed 1 | . 1 . Kicked 1 | . 1 . Crushed . | . . . Highest Temperature 282 | . 282 . Average Temperature 75 | . 75 . Received Heat Transfer 177 | . 141 36 Siege Activations . | . . . Robots Corrupted . | . . . Combat Hostiles . | . . . Parts Fried . | . . . Impact Corruptions . | . . . Robots Melted . | . . . Combat Hostiles . | . . . Parts Melted 1 | . 1 . Heat Transferred 581 | . 481 100 Parts Sabotaged . | . . . Parts Stolen . | . . . Parts Stripped . | . . . Power Chain Reactions . | . . . Alert | -11 -10 -10 ------- Run | Yrd Mat Sub Peak Influence 179 | . 179 . Initial . | . . . Average 45 | . 46 . Maximum Alert Level . | . . . Low Security (%) 100 | 100 100 . Level 1 . | . . . Level 2 . | . . . Level 3 . | . . . Level 4 . | . . . Level 5 . | . . . High Security . | . . . Max Security . | . . . Squads Dispatched . | . . . Investigation . | . . . Extermination . | . . . Reinforcement . | . . . Assault . | . . . Garrison . | . . . Intercept . | . . . Searches Triggered . | . . . Construction Impeded . | . . . Haulers Reinforced . | . . . Active Scanning Responses . | . . . Cargo Convoy Interrupts . | . . . Stealth | -11 -10 -10 --------- Run | Yrd Mat Sub Distress Signals 1 | . 1 . Communications Jammed . | . . . Distress Signals . | . . . Times Spotted 18 | . 16 2 Peak Tracking Total 3 | . 3 2 Tactical Retreats . | . . . Traps | -11 -10 -10 ------- Run | Yrd Mat Sub Traps Triggered . | . . . Indirectly . | . . . Trap Hack Attempts . | . . . Triggered . | . . . Disarmed . | . . . Reprogrammed . | . . . Reused . | . . . Traps Extracted . | . . . Installed . | . . . Triggered . | . . . Machines | -11 -10 -10 ---------- Run | Yrd Mat Sub Machines Disabled 2 | . 2 . Max in Single Turn 1 | . 1 . Machines Repaired . | . . . Machines Dismantled . | . . . Machines Sabotaged . | . . . Overloaded Fab Kills . | . . . Hacking | -11 -10 -10 --------- Run | Yrd Mat Sub Machines Accessed 7 | . 7 . Terminals 5 | . 5 . Fabricators . | . . . Repair Stations 1 | . 1 . Recycling Units 1 | . 1 . Scanalyzers . | . . . Garrison Access . | . . . Total Hacks 26 | . 26 . Successful 16 | . 16 . Failed 10 | . 10 . Catastrophic . | . . . Database Lockouts . | . . . Manual 8 | . 8 . Terminals 16 | . 16 . Fabricators . | . . . Repair Stations 5 | . 5 . Recycling Units 5 | . 5 . Scanalyzers . | . . . Garrison Access . | . . . Terminal Hacks 7 | . 7 . Robot Analysis 1 | . 1 . Prototype ID Bank 1 | . 1 . Terminal Index 2 | . 2 . Locate Traps 3 | . 3 . Fabricator Hacks . | . . . Repair Station Hacks 4 | . 4 . Scan Component 2 | . 2 . Repair 2 | . 2 . Recycling Unit Hacks 2 | . 2 . Report Inventory 1 | . 1 . Retrieve Components 1 | . 1 . Scanalyzer . | . . . Garrison Access Hacks . | . . . Unauthorized Hacks 3 | . 3 . Terminals 3 | . 3 . Assimilate 1 | . 1 . Botnet 2 | . 2 . Fabricators . | . . . Repair Stations . | . . . Recycling Units . | . . . Scanalyzers . | . . . Garrison Access . | . . . Data Cores Recovered . | . . . Used . | . . . Hacking Detections 7 | . 7 . Full Trace Events 1 | . 1 . Feedback Events 1 | . 1 . Corruption 1 | . 1 . Feedback Blocked . | . . . Robot Schematics Acquired . | . . . Robots Built . | . . . Authchips . | . . . Time . | . . . Total Robot Build Rating . | . . . Part Schematics Acquired . | . . . Parts Built . | . . . Authchips . | . . . Time . | . . . Total Part Build Rating . | . . . Parts Repaired 2 | . 2 . Time 52 | . 52 . Parts Recycled . | . . . Recycled Matter . | . . . Retrieved Matter . | . . . Retrieved Components 2 | . 2 . Parts Scanalyzed . | . . . Part Schematics Acquired . | . . . Parts Damaged . | . . . Bothacking | -11 -10 -10 ------------ Run | Yrd Mat Sub Used RIF Installer . | . . . Robots Hacked . | . . . Non-combat . | . . . Combat . | . . . Robot Hacks Applied . | . . . Relay Couplers Released . | . . . Fabnet Peak Effective % . | . . . Robots Rewired . | . . . Allies Hacked . | . . . Hacks Repelled . | . . . Allies | -11 -10 -10 -------- Run | Yrd Mat Sub Total Allies 1 | . 1 . Largest Group 1 | . 1 . Highest-Rated Group 10 | . 10 . Highest-Rated Ally 10 | . 10 . Total Orders . | . . . Ally Attacks . | . . . Total Damage . | . . . Kills . | . . . Allies Corrupted . | . . . Allies Melted . | . . . Intel | -11 -10 -10 ------- Run | Yrd Mat Sub Robot Analysis Total 1 | . 1 . Derelict Logs Recovered . | . . . Drone Launches . | . . . Drone Recoveries . | . . . Exploration | -11 -10 -10 ------------- Run | Yrd Mat Sub Turns Passed 810 | 10 767 33 Spaces Moved 425 | 9 400 16 Core . | . . . Treads . | . . . Legs 390 | 9 381 . Wheels 35 | . 19 16 Hover . | . . . Flight . | . . . Fastest Speed 90 | 120 90 90 Average Speed 145 | 120 147 90 Slowest Speed 190 | 120 190 90 Overloaded Moves . | . . . Propulsion Burnouts . | . . . Robots Hopped . | . . . Cave-ins Triggered . | . . . Exploration Rate (%) 21 | 2 59 2 Regions Visited 2 Branch Regions 1 Pre-discovered Areas . | . . . Known Exits Taken . | . . . Unknown Exits Taken 2 | 1 1 . Scrap Searched . | . . . Spaces Dug . | . . . Terrain Destroyed 3 | . 3 . Melee . | . . . Projectile . | . . . AOE 3 | . 3 . Terrain Rammed . | . . . Walls Destroyed . | . . . Machines Disabled . | . . . Actions | -11 -10 -10 --------- Run | Yrd Mat Sub Total 543 | 8 509 26 Wait 53 | . 53 . Move 423 | 8 399 16 Hop . | . . . Pick Up 9 | . 9 . Fast Attach 3 | . 3 . Attach 3 | . 2 1 Detach 1 | . 1 . Swap 6 | . 6 . Drop 2 | . 2 . Fire 42 | . 33 9 Melee . | . . . Ram . | . . . Kick 1 | . 1 . Crush . | . . . Escape Stasis . | . . . Rewire . | . . . Trap . | . . . Miscellaneous . | . . . Route ------- -11/Scrapyard -10/Materials (discovered 4 exits: [*Mat x2] / [*Min] / [*Sub]) -10/Subcaves History --------- Turn | Location | Event 1 | -11/Scrapyard | Discovered new exit (range 3) 11 | -11/Scrapyard | Entered Materials 112 | -10/Materials | Discovered new exit (range 3) 240 | -10/Materials | Discovered new exit (range 8) 316 | -10/Materials | Build established: Mutant 324 | -10/Materials | Discovered new exit (range 12) 537 | -10/Materials | Discovered new exit (range 3) 582 | -10/Materials | Repaired Lrg. Storage Unit 625 | -10/Materials | Repaired Grenade Launcher 711 | -10/Materials | Derelicts attacked the area 752 | -10/Materials | Core integrity fell below 50% 778 | -10/Materials | Entered Subcaves 785 | -10/Subcaves | Lost 3 parts (1n2w) 802 | -10/Subcaves | Core integrity fell below 20% 811 | -10/Subcaves | Destroyed by EP-2U3(R) with Subdweller Beam Cannon Last Messages --------------- 00711_ ALERT: Derelict incursion detected, rerouting patrols to target area. 00742_ Acquired Hacking Suite. 00745_ Aluminum Leg destroyed. 00748_ Sub. Laser melted. 00748_ YQ-DIJ(R) destroyed. 00749_ Electrolysis Chamber disabled. 00749_ Grenade Launcher destroyed. 00754_ Particle Gun destroyed. 00763_ Acquired 19 matter. 00770_ K-01 Serf collects debris. 00773_ Acquired Lgt. Ion Engine. 00776_ Acquired 15 matter. LOCATION=UNKNOWN AMBIENT_HEAT=-10 GOAL=ESCAPE 00780_ Acquired 12 matter. 00803_ Critical hit (Destroy). 00803_ Assault Rifle destroyed. 00803_ Wheel destroyed. Map ----- +----------------------------------------------------+ | ?????????????????????????????????????????????????? | | ?????????????????????????????????????????????????? | | ?????????????????????????????????????????????????? | | ?????????????????????????????????????????????????? | | ?????????????????????????????????????????????????? | | ?????????????????????????????????????????????????? | | ?????????????????????????????????????????????????? | | ?????????????????????????????????????????????????? | | ?????????????????????????????????????????????????? | | ?????????????????????????????????????????????????? | | ?????????????????????????????????????????????????? | | ?????????????????????????????????????????????????? | | ?????????????????????????????????????????????????? | | ?????????????????????????????????????????????????? | | ???????????????####???????????????? ????????????? | | ?????????????? #######???????????? ????????????? | | ????????????? ### #####?????????? ???????????? | | ???????????? ### ####???????? ???????????? | | ????????????### % #####????? ????????????? | | ????????????## ####???? %?????????????? | | ????????????## ##### ???????????????? | | ????????????### ##### ##???????????????? | | ????????????###### ### ##???????????????? | | ?????????????###### ### O ###???????????????? | | ????????????????### #### ##????????????????? | | ????????????????## ## @ ###???????????????? | | ????????????????## ## ###???????????????? | | ????????????????### ##???????????????? | | ????????????????## ###???????????????? | | ????????????????##### ###R## ####???????????????? | | ????????????????######## ########????????????????? | | ???????????????????#### #######?????????????????? | | ????????????????????????%????????????????????????? | | ????????????????????????R????????????????????????? | | ??????????????????????? ???????????????????????? | | ???????????????????????## ???????????????????????? | | ???????????????????????###???????????????????????? | | ?????????????????????????????????????????????????? | | ?????????????????????????????????????????????????? | | ?????????????????????????????????????????????????? | | ?????????????????????????????????????????????????? | | ?????????????????????????????????????????????????? | | ?????????????????????????????????????????????????? | | ?????????????????????????????????????????????????? | | ?????????????????????????????????????????????????? | | ?????????????????????????????????????????????????? | | ?????????????????????????????????????????????????? | | ?????????????????????????????????????????????????? | | ?????????????????????????????????????????????????? | | ?????????????????????????????????????????????????? | +----------------------------------------------------+ Best States ------------- Heat Dissipation 25 Energy Generation 14 Energy Capacity 250 Matter Stores 300 Matter Capacity 300 Sight Range 16 Terrain Scan Density 10 Evasion (%) 55 Item Schematics ----------------- None Robot Schematics ------------------ None Fabricated ------------ Nothing Alien Tech Used ----------------- None Achievements -------------- None Challenges ------------ None Game ------ Seed ExoskeletonFieldFilter Manual? 0 Play Time 00:06:42 Cumulative 917.0 hours Start 2024.09.04 @ 11:43:24 End 2024.09.04 @ 11:54:33 Sessions 1 Manual Loads 0 Difficulty Rogue Special Mode None Game No. 1109 Rogue 829 Adventurer 124 Explorer 156 Win Type - Total 39 Types 28/0/8/1/1/0/0/1/0 Lore% 79 Gallery% 90 Achievement% 78 Wizard Run 0 Options --------- Layout 0 ASCII 0 Keyboard 1 Movement Numpad Keybinds 0 Fullscreen 2 Font 18/X11 Map View 76x50 Zoom Use 0% Tactical HUD 1 Map Filters NONE Filters NONE Steam 1 RUN: 27c6584b-b72a-4f68-8b70-d8751b1e6670